bitfinex-derivatives/quotes_SOLF0:USTF0_20250829
["timestamp","ask_amount","ask_price","bid_price","bid_amount"]
[1756433783625,5.32,215.85,215.73,4.20081224]
[1756433784824,9.4878,215.9,215.74,7.23]
[1756433785027,5.32,215.9,215.74,7.23]
[1756433785219,4.1684,215.87,215.74,7.23]
[1756433785424,5.32,215.86,215.74,7.23]
[1756433788932,5.32,215.86,215.69,7.23]
[1756433789427,5.32,215.77,215.64,58.24081224]
[1756433790036,5.32,215.77,215.64,4.20081224]
[1756433790229,4.1705,215.76,215.64,4.20081224]
[1756433790431,5.32,215.84,215.68,4.20081224]
[1756433790631,5.32,215.84,215.72,4.20081224]
[1756433791035,5.32,215.9,215.77,7.23]
[1756433794533,10.62,215.96,215.8,7.23]
[1756433796039,5.32,215.97,215.8,7.23]
[1756433797236,6.57334144,215.99,215.8,7.23]
[1756433797637,5.33,215.98,215.8,7.23]
[1756433797845,9.4978,215.91,215.8,7.23]
[1756433800631,4.168,215.9,215.8,7.23]
[1756433802334,5.33,215.91,215.77,311.34]
[1756433802540,6.57334144,215.94,215.77,311.34]
[1756433802741,6.57334144,215.94,215.76,7.45]
[1756433802940,5.33,215.87,215.76,7.45]
[1756433803136,5.33,215.87,215.73,125.1]
[1756433803333,5.33,215.88,215.71,7.45]
[1756433803638,5.33,215.8,215.65,7.45]
[1756433803844,5.33,215.8,215.65,90.41]
[1756433804536,4.1703,215.78,215.65,90.41]
[1756433804741,5.33,215.8,215.65,90.41]
[1756433804742,5.33,215.8,215.66,7.45]
[1756433805342,5.33,215.8,215.67,125.06]
[1756433806744,311.26,215.96,215.66,7.45]
[1756433806745,6.57334144,215.83,215.66,7.45]
[1756433806945,13.86,215.82,215.66,7.45]
[1756433807344,5.33,215.81,215.66,7.45]
[1756433807540,5.33,215.81,215.72,0.03113712]
[1756433807742,5.33,215.75,215.72,0.03113712]
[1756433810443,5.33,215.77,215.72,0.03113712]
[1756433810648,5.33,215.82,215.72,0.03113712]
[1756433810857,17.47,215.82,215.72,0.03113712]
[1756433811242,5.33,215.82,215.72,0.03113712]
[1756433811448,17.47,215.82,215.72,0.03113712]
[1756433811644,5.33,215.82,215.72,0.03113712]
[1756433812153,19.24,215.82,215.72,0.03113712]
[1756433812349,5.33,215.8,215.72,0.03113712]
[1756433812550,29.85,215.8,215.72,0.03113712]
[1756433812753,5.33,215.79,215.72,0.03113712]
[1756433812956,19.24,215.81,215.72,0.03113712]
[1756433813160,5.33,215.79,215.72,0.03113712]
[1756433814057,0.02997085,215.78,215.72,0.03113712]
[1756433815258,5.33,215.77,215.72,0.03113712]
[1756433815458,4.200322,215.76,215.72,0.03113712]
[1756433815659,5.3,215.75,215.62,7.45]
[1756433816559,4.1714,215.72,215.62,7.45]
[1756433816960,0.0324396,215.71,215.62,7.45]
[1756433817857,5.3,215.7,215.57,7.45]
[1756433818558,0.02978398,215.66,215.57,7.45]
[1756433819158,5.32978398,215.66,215.52,88.8]
[1756433819362,4.1731,215.63,215.52,96.25]
[1756433819962,0.03066885,215.6,215.52,96.25]
[1756433820159,0.03066885,215.6,215.52,7.45]
[1756433821363,0.03066885,215.6,215.46,11.19144213]
[1756433821564,5.3,215.59,215.46,7.45]
[1756433821958,0.02951915,215.55,215.46,7.45]
[1756433822154,5.32951915,215.55,215.46,7.45]
[1756433823267,9.52984115,215.55,215.41,7.45]
[1756433823666,5.3,215.55,215.41,7.45]
[1756433823867,4.1753,215.51,215.41,7.45]
[1756433824067,0.02983819,215.5,215.41,7.45]
[1756433825372,0.02983819,215.5,215.38,7.45]
[1756433825670,0.02983819,215.5,215.44,7.45]
[1756433825876,5.3,215.62,215.44,7.45]
[1756433826175,5.3,215.62,215.48,7.45]
[1756433826573,311.46,215.66,215.48,7.45]
[1756433827370,311.46,215.66,215.52,7.71]
[1756433827574,315.6324,215.66,215.52,7.71]
[1756433828174,311.46,215.66,215.52,7.71]
[1756433828876,5.35,215.65,215.52,7.71]
[1756433829677,5.35,215.6,215.42,7.71]
[1756433829867,5.35,215.56,215.42,7.71]
[1756433830176,5.35,215.56,215.43,4.200322]
[1756433830376,5.35,215.56,215.42,7.71]
[1756433830578,4.175,215.53,215.42,7.71]
[1756433830874,5.35,215.56,215.42,7.71]
[1756433831076,4.1753,215.52,215.42,7.71]
[1756433831970,129.06822653,215.6,215.42,7.71]
[1756433831971,4.1755,215.5,215.42,7.71]
[1756433832172,4.1755,215.5,215.36,7.71]
[1756433833778,4.1759,215.48,215.36,7.71]
[1756433834174,33.35822653,215.51,215.36,7.71]
[1756433834376,5.34,215.5,215.36,7.71]
[1756433834778,9.5157,215.5,215.36,7.71]
[1756433834981,5.34,215.5,215.36,7.71]
[1756433835382,4.1759,215.49,215.36,7.71]
[1756433835881,5.34,215.59,215.36,7.71]
[1756433836078,5.34,215.59,215.3,95.27581719]
[1756433836079,5.34,215.59,215.4,7.71]
[1756433836276,5.34,215.59,215.42,7.71]
[1756433836676,83.28,215.65,215.45,7.71]
[1756433837080,4.1743,215.57,215.45,7.71]
[1756433837581,9.5137,215.6,215.45,7.71]
[1756433837877,5.34,215.6,215.45,7.71]
[1756433838476,5.34,215.65,215.45,7.71]
[1756433839085,4.174,215.58,215.45,7.71]
[1756433839282,5.34,215.6,215.45,7.71]
[1756433839677,4.1744,215.56,215.45,7.71]
[1756433839881,5.34,215.6,215.45,7.71]
[1756433841685,4.174,215.58,215.45,7.71]
[1756433842084,5.34,215.6,215.45,7.71]
[1756433842485,4.1747,215.55,215.45,7.71]
[1756433843184,5.34,215.56,215.39,7.71]
[1756433843688,5.34,215.54,215.34,7.71]
[1756433843992,13.91,215.52,215.34,7.71]
[1756433844189,5.34,215.51,215.34,7.71]
[1756433845383,85.36,215.5,215.34,7.71]
[1756433845689,4.1767,215.44,215.34,7.71]
[1756433846087,4.1771,215.42,215.34,7.71]
[1756433846683,4.1775,215.4,215.34,7.71]
[1756433846989,5.34,215.44,215.26,7.71]
[1756433847184,6.59822653,215.45,215.26,7.71]
[1756433847485,20.50822653,215.45,215.26,7.71]
[1756433847883,4.1781,215.37,215.26,7.71]
[1756433848393,5.34,215.41,215.26,7.71]
[1756433849289,5.34,215.37,215.17,7.71]
[1756433849989,6.59822653,215.4,215.17,7.71]
[1756433850190,20.50822653,215.4,215.17,7.71]
[1756433850391,5.34,215.38,215.17,7.71]
[1756433850687,13.91,215.39,215.17,7.71]
[1756433850893,5.34,215.38,215.17,7.71]
[1756433851087,13.91,215.39,215.17,7.71]
[1756433851588,5.34,215.34,215.17,7.71]
[1756433851892,20.50822653,215.35,215.17,7.71]
[1756433851893,124.66,215.33,215.17,7.71]
[1756433852093,5.34,215.32,215.17,7.71]
[1756433853287,5.34,215.32,215.19,4.21780583]
[1756433853493,5.34,215.39,215.24,7.71]
[1756433853691,9.5177,215.39,215.24,7.71]
[1756433854284,5.34,215.39,215.24,7.71]
[1756433855392,311.82,215.42,215.24,7.71]
[1756433856687,5.33,215.45,215.29,7.36]
[1756433856889,4.1767,215.44,215.31,7.36]
[1756433857097,5.33,215.45,215.31,7.36]
[1756433859494,4.1767,215.44,215.31,7.36]
[1756433860795,6.60451478,215.48,215.31,7.36]
[1756433860996,5.33,215.47,215.31,7.36]
[1756433861791,113.78451478,215.48,215.31,7.36]
[1756433862191,5.33,215.47,215.31,7.36]
[1756433863093,4.1773,215.41,215.31,7.36]
[1756433864502,4.1777,215.39,215.31,7.36]
[1756433864704,6.60451478,215.43,215.25,7.36]
[1756433864903,20.51451478,215.43,215.21,7.36]
[1756433865104,5.33,215.42,215.21,7.36]
[1756433865306,5.33,215.4,215.21,7.36]
[1756433866005,4.1794,215.3,215.21,7.36]
[1756433866306,5.33,215.34,215.21,7.36]
[1756433867799,4.1796,215.3,215.21,7.36]
[1756433869598,5.33,215.35,215.15,7.36]
[1756433869801,30.49,215.36,215.15,7.36]
[1756433869997,5.33,215.35,215.15,7.36]
[1756433870201,4.1792,215.32,215.15,7.36]
[1756433870399,5.33,215.35,215.15,7.36]
[1756433870800,4.1794,215.3,215.15,7.36]
[1756433871907,4.1797,215.29,215.15,7.36]
[1756433873607,4.1792,215.31,215.15,7.36]
[1756433873908,5.33,215.35,215.15,7.36]
[1756433874105,5.33,215.35,215.15,11.10144213]
[1756433874307,4.1788,215.33,215.16,7.36]
[1756433874809,5.33,215.35,215.16,7.36]
[1756433875009,124.12,215.38,215.16,7.36]
[1756433875304,5.33,215.3,215.16,7.36]
[1756433875506,6.60451478,215.33,215.16,7.36]
[1756433875811,4.1808,215.23,215.16,7.36]
[1756433876012,5.33,215.27,215.16,7.36]
[1756433877311,4.1804,215.25,215.16,7.36]
[1756433877809,5.33,215.27,215.16,7.36]
[1756433878615,5.33,215.33,215.16,7.36]
[1756433879610,5.33,215.33,215.22,0.03085596]
[1756433879907,5.33,215.29,215.22,0.03085596]
[1756433880413,5.33,215.23,215.22,0.03085596]
[1756433880808,5.33,215.23,215.11,7.36]
[1756433881003,3.95736272,215.22,215.04,3.74144213]
[1756433881208,5.33,215.21,215.05,7.36]
[1756433881606,3.95736272,215.22,215.05,7.36]
[1756433881812,5.33,215.21,215.05,7.36]
[1756433882311,0.03265821,215.16,215.05,7.36]
[1756433884513,0.03265821,215.16,215.06,7.36]
[1756433884708,0.03265821,215.16,215.1,7.36]
[1756433885212,9.5098,215.28,215.11,0.0298507]
[1756433885419,5.33,215.28,215.14,7.36]
[1756433885714,4.1803,215.26,215.14,7.36]
[1756433885917,5.33,215.28,215.14,7.36]
[1756433885918,5.36,215.28,215.14,7.36]
[1756433886116,3.95736272,215.29,215.14,7.36]
[1756433886310,5.37,215.28,215.14,7.36]
[1756433887011,3.95736272,215.29,215.14,7.36]
[1756433887212,3.95736272,215.25,215.09,7.59]
[1756433887512,5.37,215.24,215.09,7.59]
[1756433887717,3.95736272,215.22,215.09,7.59]
[1756433887911,5.37,215.21,215.09,7.59]
[1756433888312,4.1821,215.17,215.09,7.59]
[1756433889514,4.1823,215.16,215.09,7.59]
[1756433890309,5.37,215.15,215.02,11.33144213]
[1756433890516,5.37,215.15,215.02,7.59]
[1756433891713,4.1829,215.13,215.02,7.59]
[1756433892415,4.1823,215.16,215.02,7.59]
[1756433892616,5.37,215.2,215.02,11.54736272]
[1756433892807,5.37,215.2,215.03,7.59]
[1756433893012,4.1823,215.16,215.03,7.59]
[1756433894515,3.95736272,215.21,215.03,7.59]
[1756433894816,5.38,215.2,215.03,7.59]
[1756433895712,9.5613,215.2,215.03,7.59]
[1756433895908,9.5613,215.2,215.04,7.59]
[1756433896718,4.1817,215.19,215.04,11.33144213]
[1756433896921,4.1817,215.19,215.05,7.59]
[1756433897319,410.17736272,215.25,215.03,3.74144213]
[1756433897320,312.18,215.25,215.06,3.95736272]
[1756433897619,312.18,215.25,215.07,7.59]
[1756433898017,312.18,215.25,215.11,7.59]
[1756433898619,316.3605,215.25,215.11,7.59]
[1756433898820,312.18,215.25,215.11,7.59]
[1756433899417,5.38,215.24,215.11,7.59]
[1756433899919,4.1813,215.21,215.11,7.59]
[1756433901521,4.1815,215.2,215.11,7.59]
[1756433904625,4.1817,215.18,215.11,7.59]
[1756433905221,4.1813,215.2,215.11,7.59]
[1756433905623,5.38,215.26,215.11,7.59]
[1756433905928,5.38,215.26,215.13,7.59]
[1756433906725,5.38,215.26,215.13,11.33144213]
[1756433907824,5.38,215.31,215.15,11.33144213]
[1756433908027,5.38,215.31,215.17,11.33144213]
[1756433908226,5.38,215.31,215.18,7.59]
[1756433908427,5.38,215.31,215.18,11.33144213]
[1756433908830,5.38,215.31,215.19,7.59]
[1756433909030,5.38,215.31,215.2,7.59]
[1756433909433,5.38,215.31,215.2,11.33144213]
[1756433909634,5.38,215.31,215.21,3.74144213]
[1756433910522,9.5594,215.31,215.2,11.33144213]
[1756433910728,5.38,215.35,215.21,7.59]
[1756433911238,5.38,215.35,215.21,11.33144213]
[1756433911733,4.1789,215.33,215.21,7.59]
[1756433911933,4.1789,215.33,215.21,11.40180058]
[1756433912234,5.38,215.35,215.25,3.81180058]
[1756433912727,94.64,215.44,215.25,3.81180058]
[1756433912937,94.64,215.44,215.26,7.59]
[1756433913135,4.1777,215.39,215.26,15.3591633]
[1756433913836,4.1777,215.39,215.27,3.81180058]
[1756433914025,5.38,215.38,215.27,3.81180058]
[1756433914230,5.38,215.4,215.23,3.81180058]
[1756433915135,3.95736272,215.41,215.23,3.81180058]
[1756433915330,5.38,215.36,215.25,3.81180058]
[1756433915531,29.69736272,215.45,215.26,15.3591633]
[1756433915733,3.95736272,215.41,215.26,7.59]
[1756433916339,5.36,215.4,215.26,7.59]
[1756433916740,3.95736272,215.41,215.26,7.59]
[1756433917740,4.1785,215.35,215.26,7.59]
[1756433917939,5.36,215.36,215.26,7.59]
[1756433918842,4.1788,215.34,215.26,7.59]
[1756433919940,5.36,215.36,215.26,7.59]
[1756433920240,5.36,215.36,215.28,0.02965134]
[1756433920839,5.36,215.41,215.29,7.21]
[1756433921634,3.95736272,215.49,215.29,7.21]
[1756433921937,5.36,215.48,215.31,7.21]
[1756433922138,4.1772,215.42,215.31,7.21]
[1756433922942,5.36,215.43,215.31,7.21]
[1756433924149,4.1767,215.44,215.31,7.21]
[1756433925339,5.36,215.47,215.32,3.95736272]
[1756433925544,5.36,215.47,215.33,7.21]
[1756433926245,4.1763,215.46,215.33,7.21]
[1756433926446,5.36,215.47,215.33,7.21]
[1756433926747,3.95736272,215.49,215.33,7.21]
[1756433927248,4.177,215.43,215.33,7.21]
[1756433927942,5.36,215.44,215.33,7.21]
[1756433928548,9.5368,215.44,215.33,7.21]
[1756433929337,5.36,215.44,215.33,7.21]
[1756433929838,4.1771,215.42,215.33,7.21]
[1756433932248,4.1775,215.4,215.33,7.21]
[1756433932452,9.5375,215.4,215.33,7.21]
[1756433934750,4.1775,215.4,215.33,7.21]
[1756433935246,4.1771,215.42,215.33,7.21]
[1756433935751,5.36,215.44,215.33,7.21]
[1756433936448,9.5367,215.44,215.33,7.21]
[1756433938650,5.36,215.44,215.33,7.21]
[1756433939451,4.1776,215.4,215.33,7.21]
[1756433939652,5.36,215.44,215.33,7.21]
[1756433940052,4.1774,215.41,215.33,7.21]
[1756433940755,5.36,215.42,215.27,7.21]
[1756433940954,3.95736272,215.43,215.27,7.21]
[1756433941155,5.36,215.42,215.27,7.21]
[1756433941359,3.95736272,215.43,215.27,7.21]
[1756433941750,5.36,215.42,215.27,7.21]
[1756433941945,3.95736272,215.43,215.27,7.21]
[1756433942655,4.1783,215.36,215.27,7.21]
[1756433943653,5.36,215.43,215.27,7.21]
[1756433943852,5.36,215.43,215.29,3.95736272]
[1756433944054,5.36,215.43,215.3,7.21]
[1756433944755,5.36,215.43,215.31,7.21]
[1756433945059,4.1765,215.45,215.31,7.21]
[1756433945852,4.1765,215.45,215.31,11.01403271]
[1756433946059,4.1765,215.45,215.32,7.21]
[1756433946257,5.38,215.5,215.32,11.01403271]
[1756433946460,3.95736272,215.47,215.32,7.21]
[1756433946761,5.38,215.46,215.32,7.21]
[1756433947661,3.95736272,215.47,215.32,7.21]
[1756433947861,5.38,215.42,215.27,7.38]
[1756433948155,3.95736272,215.43,215.27,7.38]
[1756433948555,5.38,215.42,215.27,7.38]
[1756433948761,5.38,215.36,215.27,7.38]
[1756433949062,5.38,215.42,215.27,7.38]
[1756433949363,4.1776,215.4,215.29,7.38]
[1756433949559,5.38,215.39,215.29,7.38]
[1756433950163,4.1783,215.36,215.29,7.38]
[1756433950863,4.1787,215.34,215.26,3.80403271]
[1756433951054,5.38,215.36,215.25,3.80403271]
[1756433951260,5.38,215.36,215.24,11.18403271]
[1756433951757,4.1787,215.34,215.24,11.18403271]
[1756433952066,3.95736272,215.4,215.27,3.80403271]
[1756433952965,5.36,215.39,215.27,3.80403271]
[1756433953166,4.1781,215.37,215.27,3.82161539]
[1756433953369,4.1781,215.37,215.28,3.82161539]
[1756433955367,12.78,215.44,215.25,12.49022487]
[1756433955368,5.36,215.35,215.25,11.20161539]
[1756433955575,5.36,215.35,215.25,3.82161539]
[1756433955770,5.36,215.31,215.23,3.82161539]
[1756433955970,5.36,215.31,215.22,3.82161539]
[1756433956663,4.1797,215.29,215.22,3.82161539]
[1756433956873,5.36,215.31,215.21,7.38]
[1756433957468,4.1801,215.27,215.21,7.38]
[1756433957669,4.1801,215.27,215.19,3.82161539]
[1756433958171,4.1801,215.27,215.18,3.82161539]
[1756433958367,5.36,215.28,215.18,3.82161539]
[1756433958773,5.36,215.28,215.19,3.82161539]
[1756433959177,5.36,215.28,215.2,7.38]
[1756433960370,5.36,215.28,215.18,3.82161539]
[1756433960776,5.36,215.28,215.19,3.82161539]
[1756433961170,5.36,215.28,215.18,11.20161539]
[1756433961372,5.36,215.28,215.19,3.82161539]
[1756433961574,5.36,215.28,215.2,3.82161539]
[1756433962470,5.36,215.32,215.21,11.20161539]
[1756433963076,5.36,215.37,215.22,7.38]
[1756433963277,5.36,215.37,215.26,3.82161539]
[1756433963472,5.36,215.37,215.25,11.20161539]
[1756433964076,5.36,215.37,215.26,3.82161539]
[1756433964680,4.1783,215.36,215.26,3.82161539]
[1756433965880,5.36,215.37,215.26,3.82161539]
[1756433967374,4.1783,215.36,215.26,3.82161539]
[1756433967875,5.36,215.37,215.26,3.82161539]
[1756433968076,5.36,215.37,215.27,3.82161539]
[1756433968281,5.36,215.37,215.26,3.82161539]
[1756433968780,5.36,215.37,215.27,11.20161539]
[1756433969981,5.36,215.42,215.29,3.82161539]
[1756433970183,4.1776,215.4,215.3,7.38]
[1756433970680,5.36,215.42,215.3,7.38]
[1756433970876,5.36,215.42,215.3,11.20161539]
[1756433971077,5.36,215.42,215.33,0.03519557]
[1756433971682,0.03054864,215.4,215.34,7.38]
[1756433974577,0.03054864,215.4,215.34,11.20161539]
[1756433974777,0.03054864,215.4,215.36,7.38]
[1756433974977,0.03054864,215.4,215.35,3.82161539]
[1756433975172,0.03054864,215.4,215.36,7.38]
[1756433975380,0.03054864,215.4,215.36,3.82161539]
[1756433975579,0.03054864,215.4,215.37,3.82161539]
[1756433976082,0.03054864,215.4,215.37,7.38]
[1756433976287,0.03054864,215.4,215.36,3.82161539]
[1756433976582,0.03054864,215.4,215.37,7.1]
[1756433976781,0.03054864,215.4,215.36,3.82161539]
[1756433977185,0.03054864,215.4,215.37,7.1]
[1756433977383,0.03054864,215.4,215.36,3.82161539]
[1756433978176,0.03054864,215.4,215.37,7.1]
[1756433978381,0.03054864,215.4,215.36,3.82161539]
[1756433978582,0.03054864,215.4,215.37,7.1]
[1756433978881,0.03054864,215.4,215.36,3.82161539]
[1756433979877,0.03054864,215.4,215.37,7.1]
[1756433980479,0.03054864,215.4,215.35,3.82161539]
[1756433981283,0.03054864,215.4,215.36,3.82161539]
[1756433981482,0.03054864,215.4,215.35,3.82161539]
[1756433981884,0.03054864,215.4,215.36,7.1]
[1756433982885,0.03054864,215.4,215.33,3.86326989]
[1756433984189,0.03054864,215.4,215.35,7.1]
[1756433984681,5.41,215.57,215.39,3.82807432]
[1756433984890,5.41,215.57,215.44,7.1]
[1756433985081,5.41,215.57,215.44,10.92346104]
[1756433985388,5.41,215.57,215.45,10.92346104]
[1756433985783,9.5843,215.57,215.45,7.1]
[1756433985983,5.41,215.57,215.49,0.03267823]
[1756433986889,4.1744,215.56,215.49,0.03267823]
[1756433989288,5.41,215.57,215.49,0.03267823]
[1756433991785,9.5843,215.57,215.49,0.03267823]
[1756433993681,5.41,215.57,215.49,0.03267823]
[1756433994983,5.41,215.63,215.5,7.1]
[1756433995788,5.41,215.63,215.49,3.95736272]
[1756433995789,5.41,215.63,215.54,0.0343257]
[1756433996189,5.41,215.63,215.55,7.1]
[1756433996587,5.41,215.69,215.55,7.1]
[1756433996784,9.5826,215.66,215.55,7.1]
[1756433997092,3.95736272,215.67,215.5,7.1]
[1756433997292,3.95736272,215.67,215.58,0.0326972]
[1756433997293,5.41,215.63,215.58,0.0326972]
[1756433997590,4.1729,215.64,215.58,0.0326972]
[1756433997792,5.41,215.63,215.58,0.0326972]
[1756433997986,9.5829,215.64,215.58,0.0326972]
[1756433999293,4.1732,215.62,215.58,0.0326972]
[1756433999494,5.41,215.61,215.58,0.0326972]
[1756434000588,5.41,215.67,215.58,0.0326972]
[1756434001094,0.0293968,215.65,215.57,7.1]
[1756434001293,0.0293968,215.65,215.61,7.1]
[1756434001487,0.0293968,215.65,215.6,3.99155142]
[1756434001693,105.67621624,215.72,215.61,7.1]
[1756434002691,5.41,215.65,215.64,0.03281809]
[1756434003095,5.41,215.65,215.53,7.1]
[1756434003293,5.41,215.68,215.53,7.1]
[1756434003494,5.41,215.68,215.62,0.0324552]
[1756434003794,5.41,215.67,215.62,0.0324552]
[1756434004093,122.96,215.71,215.46,311.74]
[1756434004094,5.41,215.63,215.48,7.1]
[1756434004297,3.95736272,215.6,215.48,7.1]
[1756434004493,5.41,215.59,215.48,7.1]
[1756434004897,4.1743,215.57,215.48,7.1]
[1756434005091,5.41,215.56,215.48,7.1]
[1756434005292,18.69455321,215.7,215.48,7.1]
[1756434005594,9.5832,215.62,215.48,7.1]
[1756434005998,5.41,215.62,215.48,7.1]
[1756434007096,27.86,215.68,215.51,7.33]
[1756434007097,5.39,215.68,215.51,7.33]
[1756434007295,5.39,215.68,215.53,7.33]
[1756434007495,3.95736272,215.65,215.53,7.33]
[1756434007702,5.39,215.64,215.53,7.33]
[1756434008099,4.1734,215.61,215.53,7.33]
[1756434009495,3.95736272,215.65,215.46,311.74]
[1756434009697,5.39,215.59,215.47,7.33]
[1756434009892,3.95736272,215.61,215.47,7.33]
[1756434010100,5.39,215.6,215.47,7.33]
[1756434011399,3.95736272,215.61,215.47,7.33]
[1756434011901,5.39,215.6,215.47,7.33]
[1756434012100,9.5645,215.56,215.47,7.33]
[1756434013896,5.39,215.56,215.49,0.03124173]
[1756434014699,3.95736272,215.61,215.49,0.03124173]
[1756434014700,0.03233974,215.55,215.49,7.36124173]
[1756434015003,0.03233974,215.55,215.49,7.33]
[1756434015204,5.39,215.66,215.52,7.33]
[1756434015394,5.39,215.71,215.55,7.33]
[1756434015597,5.39,215.71,215.58,3.95736272]
[1756434015795,5.39,215.71,215.59,7.33]
[1756434016503,5.39,215.71,215.63,0.03506453]
[1756434016703,5.39,215.76,215.63,7.36506453]
[1756434017103,5.39,215.76,215.63,7.33]
[1756434017306,4.1706,215.75,215.67,0.03025635]
[1756434017805,4.1697,215.81,215.67,7.36025635]
[1756434018204,5.39,215.83,215.67,7.33]
[1756434018401,0.8066105,215.9,215.7,3.95736272]
[1756434018601,315.63736272,215.91,215.61,51.96]
[1756434018602,5.39,215.89,215.74,3.95736272]
[1756434018807,5.39,215.89,215.75,7.33]
[1756434019307,5.39,215.89,215.79,0.02965255]
[1756434021005,9.5581,215.89,215.79,0.02965255]
[1756434022102,4.1684,215.87,215.79,0.02965255]
[1756434022807,5.39,215.89,215.79,0.02965255]
[1756434023206,4.1686,215.86,215.79,0.02965255]
[1756434023402,5.39,215.85,215.79,0.02965255]
[1756434025908,3.95736272,215.82,215.64,7.33]
[1756434026107,5.39,215.81,215.64,7.33]
[1756434026809,4.1702,215.78,215.64,7.33]
[1756434027009,11.31736272,215.82,215.64,7.33]
[1756434027309,5.39,215.77,215.64,7.33]
[1756434027709,4.1705,215.76,215.64,7.33]
[1756434028312,5.39,215.84,215.66,3.95736272]
[1756434028603,5.39,215.84,215.67,7.33]
[1756434029006,4.1694,215.82,215.67,7.33]
[1756434029205,5.39,215.9,215.75,7.33]
[1756434029407,5.39,215.9,215.76,7.33]
[1756434030009,5.39,215.97,215.79,7.33]
[1756434030404,5.39,215.97,215.81,0.02972568]
[1756434030803,4.1672,215.93,215.79,7.33]
[1756434031007,69.46,215.98,215.79,7.33]
[1756434031008,5.39,215.94,215.79,7.33]
[1756434031604,5.39,215.96,215.79,7.33]
[1756434032009,20.50507015,215.97,215.79,7.33]
[1756434032418,5.39,215.96,215.79,7.33]
[1756434032806,20.50507015,215.97,215.79,7.33]
[1756434033311,4.1681,215.89,215.79,7.33]
[1756434035302,5.39,215.9,215.79,7.33]
[1756434035507,4.1673,215.93,215.79,7.33]
[1756434035804,5.34,215.94,215.79,7.33]
[1756434036010,6.57507015,215.95,215.79,7.33]
[1756434036411,5.37,215.94,215.79,7.33]
[1756434037213,4.1683,215.87,215.79,7.33]
[1756434037413,4.1683,215.87,215.73,12.86]
[1756434037613,5.37,215.9,215.74,7.23]
[1756434038009,6.57507015,215.9,215.74,7.23]
[1756434038213,5.37,215.89,215.74,7.23]
[1756434039011,4.1691,215.84,215.74,7.23]
[1756434040717,5.37,215.89,215.74,7.23]
[1756434040920,6.57507015,215.9,215.74,7.23]
[1756434041314,4.1693,215.83,215.74,7.23]
[1756434041511,5.37,215.84,215.74,7.23]
[1756434042012,5.37,215.84,215.64,6.57507015]
[1756434042013,5.37,215.84,215.65,69.48]
[1756434042209,5.37,215.96,215.7,7.23]
[1756434042409,4.1678,215.9,215.7,7.23]
[1756434042618,5.37,215.96,215.75,7.23]
[1756434042821,5.37,215.96,215.77,7.23]
[1756434043115,9.5368,215.96,215.77,7.23]